[Event "44th Chess Olympiad Women 2022"]
[Site "Chennai"]
[Date "2022.07.29"]
[Round "1.15"]
[White "Krasteva, Beloslava"]
[Black "Shaba, Linda Dalitso"]
[Result "1-0"]
[WhiteElo "2249"]
[BlackElo "1658"]
[Annotator "RC"]
[PlyCount "99"]
[EventDate "2022.??.??"]
[TimeControl "60"]

1. d4 {[%emt 0:00:08]} e6 {[%emt 0:00:08]} 2. e4 {[%emt 0:00:15]} d5 {[%emt 0:
00:00]} 3. e5 {[%emt 0:00:11]} c5 {[%emt 0:00:09]} 4. c3 {[%emt 0:00:18]} Nc6 {
[%emt 0:00:39]} 5. Nf3 {[%emt 0:00:13]} cxd4 {[%emt 0:01:06]} 6. cxd4 {[%emt 0:
00:00]} Qb6 {[%emt 0:04:16]} 7. a3 {[%emt 0:02:30]} a5 {[%emt 0:03:31]} 8. Nc3
{[%emt 0:02:20]} Bd7 {[%emt 0:01:47]} 9. Be3 {[%emt 0:04:58]} Nge7 {[%emt 0:00:
00]} 10. Bd3 {[%emt 0:02:00]} Ng6 {[%emt 0:02:41]} 11. h4 {[%emt 0:03:58]} h5 {
[%emt 0:06:18]} 12. Bxg6 {[%emt 0:07:23]} fxg6 {[%emt 0:00:18]} 13. Qd2 {
[%emt 0:02:05]} Ne7 {[%emt 0:06:20]} 14. Ne2 {[%emt 0:00:41]} Rc8 {[%emt 0:00:
00]} 15. Nf4 {[%emt 0:02:15]} Rh6 {[%emt 0:21:36]} 16. O-O {[%emt 0:03:27]} Nf5
{[%emt 0:00:57]} 17. Rac1 {[%emt 0:04:32]} Rxc1 {[%emt 0:01:33]} 18. Rxc1 {
[%emt 0:00:40]} Be7 {[%emt 0:00:43]} 19. Nh3 {[%emt 0:10:59]} Rh8 {[%emt 0:00:
00]} 20. Bg5 {[%emt 0:01:54]} Rf8 {[%emt 0:04:43]} 21. Bxe7 {[%emt 0:02:08]}
Nxe7 {[%emt 0:03:40]} 22. Nf4 {[%emt 0:05:07]} Rxf4 {[%emt 0:10:05]} 23. Qxf4 {
[%emt 0:00:12]} Qxb2 {[%emt 0:00:35]} 24. Qe3 {[%emt 0:02:10]} Nf5 {[%emt 0:00:
00]} 25. Qc3 {[%emt 0:00:36]} Qb5 {[%emt 0:01:45]} 26. g3 {[%emt 0:03:59]} Qe2
{[%emt 0:04:45]} 27. Re1 {[%emt 0:02:11]} Qb5 {[%emt 0:02:35]} 28. Nd2 {
[%emt 0:06:16]} Qa4 {[%emt 0:04:53]} 29. Nf3 {[%emt 0:02:05]} Qb5 {[%emt 0:00:
00]} 30. Kg2 {[%emt 0:02:53]} Qb6 {[%emt 0:01:20]} 31. Re2 {[%emt 0:02:30]} Bc6
{[%emt 0:02:03]} 32. Rb2 {[%emt 0:01:16]} Qc7 {[%emt 0:01:07]} 33. Ng5 {
[%emt 0:02:55]} Kd7 {[%emt 0:01:34]} 34. Qc5 {[%emt 0:02:34]} a4 {[%emt 0:00:
00]} 35. Rb4 {[%emt 0:01:53]} Qd8 {[%emt 0:01:01]} 36. Qc1 {[%emt 0:04:32]} Qa5
{[%emt 0:00:27]} 37. f3 {[%emt 0:01:00]} Qa6 {[%emt 0:00:32]} 38. Qd2 {[%emt 0:
00:00]} Qa8 {[%emt 0:00:14]} 39. Nh3 {[%emt 0:01:12]} Ke7 {[%emt 0:00:31]} 40.
Nf4 {[%emt 0:00:49]} Qe8 {[%emt 0:00:27]} 41. Nd3 {[%emt 0:32:19]} Qa8 {
[%emt 0:30:47]} 42. g4 {[%emt 0:05:51]} hxg4 {[%emt 0:00:36]} 43. fxg4 {
[%emt 0:00:20]} Nh6 {[%emt 0:00:22]} 44. Qg5+ {[%emt 0:00:37]} Kf7 {[%emt 0:00:
00]} 45. Nf4 {[%emt 0:00:39]} Qc8 {[%emt 0:00:51]} 46. Qxg6+ {[%emt 0:00:00]}
Kg8 {[%emt 0:00:00]} 47. Nxe6 {[%emt 0:00:00]} Qd7 {[%emt 0:00:00]} 48. Rb1 {
[%emt 0:00:00]} Qf7 {[%emt 0:00:00]} 49. Qxf7+ {[%emt 0:00:00]} Kxf7 {[%emt 0:
00:00]} 50. Nd8+ {[%emt 0:00:00]} 1-0

[Event "44th Chess Olympiad Women 2022"]
[Site "Chennai"]
[Date "2022.07.29"]
[Round "1.15"]
[White "Makwena, Christine"]
[Black "Antova, Gabriela"]
[Result "0-1"]
[WhiteElo "1609"]
[BlackElo "2275"]
[Annotator "RC"]
[PlyCount "82"]
[EventDate "2022.??.??"]
[TimeControl "60"]

1. d4 {[%emt 0:00:04]} d5 {[%emt 0:00:12]} 2. Bg5 {[%emt 0:00:15]} f6 {[%emt 0:
00:00]} 3. Bf4 {[%emt 0:01:39]} Nc6 {[%emt 0:00:18]} 4. e3 {[%emt 0:01:00]} e5
{[%emt 0:00:49]} 5. dxe5 {[%emt 0:05:27]} fxe5 {[%emt 0:00:18]} 6. Bg3 {
[%emt 0:00:09]} Nf6 {[%emt 0:01:14]} 7. Bb5 {[%emt 0:01:23]} Bd6 {[%emt 0:00:
00]} 8. Nf3 {[%emt 0:04:28]} Bg4 {[%emt 0:05:42]} 9. Be2 {[%emt 0:02:01]} Qe7 {
[%emt 0:09:14]} 10. c3 {[%emt 0:07:39]} Qd7 {[%emt 0:19:31]} 11. Nbd2 {[%emt 0:
00:00]} O-O {[%emt 0:02:56]} 12. O-O {[%emt 0:01:57]} e4 {[%emt 0:08:38]} 13.
Nd4 {[%emt 0:05:11]} Bxg3 {[%emt 0:00:42]} 14. fxg3 {[%emt 0:08:02]} Ne5 {
[%emt 0:02:42]} 15. Bxg4 {[%emt 0:05:07]} Nfxg4 {[%emt 0:00:40]} 16. Qe2 {
[%emt 0:00:41]} c5 {[%emt 0:05:55]} 17. Nc2 {[%emt 0:02:08]} Nd3 {[%emt 0:00:
00]} 18. b3 {[%emt 0:02:44]} Nf6 {[%emt 0:06:03]} 19. c4 {[%emt 0:05:53]} dxc4
{[%emt 0:03:00]} 20. Nxc4 {[%emt 0:02:25]} b5 {[%emt 0:00:25]} 21. Nd2 {
[%emt 0:00:48]} Rad8 {[%emt 0:01:02]} 22. Rab1 {[%emt 0:06:07]} Qe6 {[%emt 0:
00:00]} 23. Rbd1 {[%emt 0:01:53]} Rfe8 {[%emt 0:01:28]} 24. Nb1 {[%emt 0:01:46]
} Nd5 {[%emt 0:01:35]} 25. Qh5 {[%emt 0:00:38]} a6 {[%emt 0:01:30]} 26. Qf5 {
[%emt 0:00:42]} Qe7 {[%emt 0:02:39]} 27. Qg4 {[%emt 0:01:32]} Rf8 {[%emt 0:00:
00]} 28. Qe2 {[%emt 0:01:16]} Qg5 {[%emt 0:00:51]} 29. Rxf8+ {[%emt 0:00:27]}
Rxf8 {[%emt 0:00:05]} 30. Rf1 {[%emt 0:00:48]} Rxf1+ {[%emt 0:01:11]} 31. Kxf1
{[%emt 0:00:07]} Qf6+ {[%emt 0:00:34]} 32. Kg1 {[%emt 0:00:36]} Qb2 {[%emt 0:
00:00]} 33. Qd1 {[%emt 0:00:51]} h6 {[%emt 0:03:35]} 34. h3 {[%emt 0:00:10]}
Qf6 {[%emt 0:03:12]} 35. Qe2 {[%emt 0:00:51]} c4 {[%emt 0:00:23]} 36. bxc4 {
[%emt 0:00:23]} bxc4 {[%emt 0:00:01]} 37. Nd2 {[%emt 0:00:24]} Nc3 {[%emt 0:00:
00]} 38. Qf1 {[%emt 0:00:16]} Qc6 {[%emt 0:01:01]} 39. Nd4 {[%emt 0:00:34]} Qc5
{[%emt 0:00:09]} 40. Qf5 {[%emt 0:01:14]} Ne2+ {[%emt 0:00:23]} 41. Nxe2 {
[%emt 0:31:16]} Qxf5 {[%emt 0:00:04]} 0-1

[Event "44th Chess Olympiad Women 2022"]
[Site "Chennai"]
[Date "2022.07.29"]
[Round "1.15"]
[White "Radeva, Viktoria"]
[Black "Mudodo, Refiloe Hazel"]
[Result "1-0"]
[WhiteElo "2289"]
[BlackElo "1604"]
[Annotator "TA"]
[PlyCount "149"]
[EventDate "2022.??.??"]
[TimeControl "60"]

{[%evp 11,149,-12,0,-31,-15,-43,-16,-24,21,13,14,10,43,3,13,21,23,27,39,0,39,0,
0,0,56,29,65,67,107,106,106,106,115,102,215,165,170,134,202,202,202,202,202,
189,202,202,202,145,145,147,165,152,154,155,163,164,180,180,179,157,159,0,191,
177,185,166,166,166,166,166,167,171,248,262,247,221,214,214,373,373,373,368,
481,473,466,415,404,392,462,450,542,542,548,516,581,568,560,529,1004,609,681,
697,644,657,698,700,664,572,1920,1915,1872,1233,1347,816,503,478,29955,29961,
29963,29964,29963,29965,29959,29960,10528,9455,29982,29983,29983,29981,29981,
29982,29981,29982,29982,29983,29983,29984,29983,29983]} 1. e4 {[%emt 0:00:03]}
e6 {[%emt 0:00:12]} 2. d4 {[%emt 0:00:13]} d5 {[%emt 0:00:16]} 3. e5 {[%emt 0:
00:00]} c5 {[%emt 0:00:35][%cal Yc7c5,Yc5d4]} 4. c3 {[%emt 0:00:04]} Nc6 {
[%emt 0:00:32]} 5. Nf3 {[%emt 0:00:04]} Qb6 {[%emt 0:01:01]} 6. Bd3 {[%emt 0:
00:06]} cxd4 {[%emt 0:01:00]} 7. O-O $1 {[%emt 0:00:11] is now more promising
than 7.cxd4. C02: French: Advance Variation.} Bd7 {[%emt 0:00:00]} 8. Re1 {
[%emt 0:00:09]} Nge7 {[%emt 0:02:05]} 9. h4 {[%emt 0:00:52] The position is
equal.} Nf5 {[%emt 0:04:02]} 10. Bxf5 {[%emt 0:00:22]} exf5 {[%emt 0:01:29]}
11. cxd4 {[%emt 0:02:32]} Bb4 {[%emt 0:05:31] [#]} 12. Re2 $146 {[%emt 0:11:42]
} (12. Nc3 $5 {[%cal Rc3d5]}) ({Predecessor:} 12. Nc3 Be6 13. Re2 O-O 14. Na4
Qd8 15. Bg5 Be7 16. Nc5 Bxg5 17. hxg5 Qe7 18. Rc1 {1-0 (35) Paichadze,L (2555)
-Bharat,K (2224) Visakhapatnam 2022}) 12... O-O {[%emt 0:00:00]} 13. a3 {
[%emt 0:01:17]} Be7 {[%emt 0:01:22]} 14. Nc3 {[%emt 0:00:31][%cal Yb1c3,Yc3a4,
Ya4c5]} Be6 {[%emt 0:01:32]} 15. b4 {[%emt 0:02:12]} a6 {[%emt 0:10:42]} 16.
Rb1 {[%emt 0:15:15]} Na7 {[%emt 0:10:13]} 17. Na4 {[%emt 0:00:00]} Qb5 {
[%emt 0:05:03]} (17... Qc6 $11) 18. Bf4 {[%emt 0:06:06]} Rac8 {[%emt 0:05:24]}
19. Nc5 $1 {[%emt 0:05:26]} b6 {[%emt 0:04:07]} 20. a4 {[%emt 0:09:56]} Qc6 {
[%emt 0:04:13]} 21. Nxa6 {[%emt 0:05:38] White is more active.} b5 {[%emt 0:04:
16]} 22. Nc5 {[%emt 0:01:04]} Bxc5 {[%emt 0:01:27]} (22... bxa4 $16 23. Nxa4
Ra8) 23. bxc5 {[%emt 0:04:13]} bxa4 {[%emt 0:01:57]} 24. Reb2 {[%emt 0:05:10]
Inhibits Rb8.} Qd7 {[%emt 0:05:13]} (24... Ra8 $16 25. Rb6 Qe8) 25. Rb7 $18 {
[%emt 0:01:12]} Rc7 {[%emt 0:02:05]} 26. Rxc7 {[%emt 0:00:00]} Qxc7 {[%emt 0:
00:09]} 27. Qxa4 {[%emt 0:00:11]} Nc6 {[%emt 0:03:45]} 28. Rb6 {[%emt 0:01:26]}
Rc8 {[%emt 0:03:58]} 29. Qb5 {[%emt 0:04:30]} h6 {[%emt 0:01:34]} 30. g3 {
[%emt 0:01:30]} Na7 {[%emt 0:02:34]} 31. Qa6 {[%emt 0:00:00] [#] Threatens to
win with Rb7.} Nc6 {[%emt 0:02:04]} 32. Kg2 {[%emt 0:00:00]} Kh7 {[%emt 0:01:
20]} 33. Qa4 {[%emt 0:04:09]} Kg8 {[%emt 0:03:38]} 34. Ne1 {[%emt 0:00:36]} Qa7
{[%emt 0:00:58]} 35. Ra6 {[%emt 0:01:22]} Qb7 {[%emt 0:00:35]} 36. Rb6 {
[%emt 0:00:48]} Qa7 {[%emt 0:00:11]} 37. Qxa7 {[%emt 0:00:11]} Nxa7 {[%emt 0:
00:09]} 38. Nc2 {[%emt 0:01:07]} Nc6 {[%emt 0:00:00]} 39. Be3 $36 {[%emt 0:00:
35] Black is under strong pressure.} Kf8 {[%emt 0:00:22]} 40. Na3 {[%emt 0:01:
22]} Bd7 {[%emt 0:02:02]} 41. Nb5 {[%emt 0:04:42]} Rb8 {[%emt 0:02:57]} (41...
Nd8 $142 42. Nc3 Be8) 42. Nc7 {[%emt 0:03:02]} Rxb6 {[%emt 0:03:38]} 43. cxb6 {
[%emt 0:00:08] Endgame KBN-KBN} Bc8 {[%emt 0:00:08]} 44. Nb5 {[%emt 0:02:31]} (
{Don't take} 44. Nxd5 $6 Bb7 $16) 44... Na5 $2 {[%emt 0:01:53]} (44... Ke7 {
might work better.} 45. Nd6 Be6) 45. Nd6 {[%emt 0:01:47]} Ba6 {[%emt 0:01:26]}
46. Bc1 {[%emt 0:02:31]} h5 {[%emt 0:04:13]} 47. Ba3 {[%emt 0:01:12]} Kg8 {
[%emt 0:00:00]} 48. Bb4 {[%emt 0:01:53]} Nc6 {[%emt 0:03:39]} 49. Bc5 {[%emt 0:
00:04]} Nd8 {[%emt 0:00:27]} 50. Nxf5 {[%emt 0:00:16]} g6 {[%emt 0:02:05]} 51.
Nd6 {[%emt 0:01:55]} Kg7 {[%emt 0:02:20]} 52. Ne8+ {[%emt 0:00:58]} Kg8 {
[%emt 0:00:00]} 53. f3 {[%emt 0:01:00][%cal Yf2f3,Yf3g4,Yg4h5]} Bb7 {[%emt 0:
00:00]} 54. Kf2 {[%emt 0:03:15]} Ne6 {[%emt 0:02:05]} 55. Ke3 {[%emt 0:00:53] 
[#] Nd6 is the strong threat.} Bc6 {[%emt 0:00:47]} 56. Nd6 {[%emt 0:03:59]}
Nd8 {[%emt 0:00:04] Inhibits b7.} 57. g4 {[%emt 0:02:27]} hxg4 {[%emt 0:01:02]}
58. fxg4 {[%emt 0:00:04]} Kg7 {[%emt 0:00:27]} 59. h5 {[%emt 0:03:54]} gxh5 {
[%emt 0:01:04]} 60. Nf5+ {[%emt 0:00:30]} Kh7 {[%emt 0:00:45]} 61. gxh5 {
[%emt 0:00:10] Black must now prevent Be7.} Bd7 {[%emt 0:02:25]} 62. Ng3 {
[%emt 0:03:00] Strongly threatening Be7.} Bc8 {[%emt 0:02:02]} 63. Be7 {
[%emt 0:01:40]} Ne6 {[%emt 0:00:19]} (63... Nc6 $18 64. Bf8 Kg8) 64. Nf5 {
[%emt 0:01:08]} Ba6 {[%emt 0:03:27]} 65. Nd6 {[%emt 0:00:20]} Kh6 {[%emt 0:00:
00]} 66. b7 {[%emt 0:00:23]} Bxb7 {[%emt 0:00:05]} 67. Nxb7 {[%emt 0:00:02]}
Kxh5 {[%emt 0:00:19]} 68. Nd8 {[%emt 0:00:35] Intending Nxe6 and mate.} Nxd8 {
[%emt 0:01:01]} 69. Bxd8 {[%emt 0:00:04] KB-KPP. White mates.} Kg4 {[%emt 0:00:
00]} 70. Bc7 {[%emt 0:00:45]} Kf5 {[%emt 0:00:22]} 71. Kf3 {[%emt 0:00:09]} f6
{[%emt 0:00:52]} 72. exf6 {[%emt 0:00:07]} Kxf6 {[%emt 0:00:06]} 73. Kf4 {
[%emt 0:00:02]} Ke6 {[%emt 0:00:13]} 74. Kg5 {[%emt 0:00:03]} Kd7 {[%emt 0:00:
00]} 75. Bb6 {[%emt 0:00:11] Weighted Error Value: White=0.27 (precise) /
Black=0.27 (precise)} 1-0

[Event "44th Chess Olympiad Women 2022"]
[Site "Chennai"]
[Date "2022.07.29"]
[Round "1.16"]
[White "Deng, Jing Xin Crystal"]
[Black "Nandhidhaa, P V.."]
[Result "0-1"]
[WhiteElo "1914"]
[BlackElo "2312"]
[Annotator "ChessBase"]
[PlyCount "58"]
[EventDate "2022.??.??"]
[TimeControl "60"]

1. d4 {[%emt 0:00:04]} d6 {[%emt 0:00:23]} 2. c4 {[%emt 0:00:35]} e5 {[%emt 0:
00:00]} 3. d5 {[%emt 0:01:20]} f5 {[%emt 0:05:05]} 4. Nc3 {[%emt 0:02:30]} Nf6
{[%emt 0:00:09]} 5. g3 {[%emt 0:07:45]} Be7 {[%emt 0:04:27]} 6. Bg2 {[%emt 0:
00:00]} a5 {[%emt 0:02:01]} 7. a3 {[%emt 0:06:48]} O-O {[%emt 0:03:39]} 8. Bg5
{[%emt 0:16:02]} Nbd7 {[%emt 0:05:25]} 9. Nf3 {[%emt 0:06:16]} Nc5 {[%emt 0:00:
00]} 10. O-O {[%emt 0:06:07]} a4 {[%emt 0:04:18]} 11. Be3 {[%emt 0:03:27]} Nb3
{[%emt 0:08:10]} 12. Rb1 {[%emt 0:00:18]} Bd7 {[%emt 0:02:40]} 13. Nd2 {
[%emt 0:02:56]} Nxd2 {[%emt 0:01:08]} 14. Bxd2 {[%emt 0:03:31]} Qe8 {[%emt 0:
00:00]} 15. b4 {[%emt 0:09:58]} axb3 {[%emt 0:01:11]} 16. Qxb3 {[%emt 0:00:24]}
b6 {[%emt 0:06:47]} 17. Nb5 {[%emt 0:03:24]} Bd8 {[%emt 0:04:00]} 18. Ra1 {
[%emt 0:03:48]} Qh5 {[%emt 0:02:54]} 19. Bf3 {[%emt 0:07:56]} Ng4 {[%emt 0:00:
00]} 20. Bxg4 {[%emt 0:00:03]} Qxg4 {[%emt 0:01:08]} 21. f3 {[%emt 0:06:25]}
Qg6 {[%emt 0:00:16]} 22. a4 {[%emt 0:02:53]} f4 {[%emt 0:02:08]} 23. Kg2 {
[%emt 0:02:34]} e4 {[%emt 0:04:17]} 24. Rh1 {[%emt 0:03:26]} exf3+ {[%emt 0:00:
00]} 25. exf3 {[%emt 0:00:34]} Bh4 {[%emt 0:01:43]} 26. Be1 {[%emt 0:01:00]}
Rae8 {[%emt 0:01:18]} 27. Bf2 {[%emt 0:00:30]} fxg3 {[%emt 0:01:25]} 28. Bxg3 {
[%emt 0:00:37]} Re2+ {[%emt 0:02:32]} 29. Kf1 {[%emt 0:00:01]} Rfe8 {[%emt 0:
00:00]} 0-1

[Event "44th Chess Olympiad Women 2022"]
[Site "Chennai"]
[Date "2022.07.29"]
[Round "1.16"]
[White "Karavade, Eesha"]
[Black "Kannappan, Sigappi"]
[Result "1-0"]
[WhiteElo "2339"]
[BlackElo "1914"]
[Annotator "TA"]
[PlyCount "97"]
[EventDate "2022.??.??"]
[TimeControl "60"]

{[%evp 13,97,35,44,42,39,38,51,41,35,36,141,131,134,117,209,182,150,149,152,
160,162,61,106,-5,44,66,113,98,125,120,106,90,280,260,282,220,207,214,390,412,
497,458,448,459,501,492,463,666,645,649,465,615,594,585,771,581,720,706,4631,
2280,4544,4067,4133,2695,6412,6139,5418,3685,2780,2285,29961,29962,29977,29978,
29978,29979,29983,29984,29984,29985,29983,29984,29988,29989,29989,29990]} 1.
Nf3 {[%emt 0:00:22]} Nf6 {[%emt 0:00:07]} 2. c4 {[%emt 0:00:16]} g6 {[%emt 0:
00:00]} 3. d4 {[%emt 0:00:33]} Bg7 {[%emt 0:00:08]} 4. Nc3 {[%emt 0:00:07]} O-O
{[%emt 0:00:21]} 5. e4 {[%emt 0:00:06]} d6 {[%emt 0:00:06]} 6. h3 {[%emt 0:00:
00]} e5 {[%emt 0:00:28]} 7. d5 {[%emt 0:00:23]} Nh5 {[%emt 0:00:24]} 8. g3 {
[%emt 0:01:27] E90: King's Indian: Classical: Early deviations and 6 h3.} f5 {
[%emt 0:07:56] 8...f5 is better than 8...Na6.} 9. exf5 {[%emt 0:02:46]} gxf5 {
[%emt 0:00:06]} 10. Ng5 {[%emt 0:00:22] White is slightly better.} Nf6 {
[%emt 0:05:36]} 11. g4 {[%emt 0:00:25]} h6 {[%emt 0:07:52]} (11... fxg4 12.
hxg4 Bxg4 13. Qc2 $16) (11... Na6 $14) 12. Ne6 $16 {[%emt 0:00:41] White is
more active.} Bxe6 {[%emt 0:00:07]} 13. dxe6 {[%emt 0:00:05] [#]} Ne4 $146 {
[%emt 0:09:21]} (13... Nc6 $16 {was called for.}) ({Predecessor:} 13... fxg4
14. hxg4 Qe7 15. Nd5 Nxd5 16. cxd5 Qf6 17. Be3 e4 18. Rb1 Qg6 19. g5 hxg5 {
1-0 (27) Xiang,Z (2447)-Cai,Y (2006) Hangzhou 2019}) 14. Nxe4 {[%emt 0:08:34]}
fxe4 {[%emt 0:00:09]} 15. Qd5 {[%emt 0:00:06][%csl Yb7,Ye4]} c6 {[%emt 0:00:00]
} 16. Qxe4 {[%emt 0:00:04] Hoping for Bd3.} d5 {[%emt 0:09:09]} (16... Qb6 $2
17. e7 (17. Bd3 Qxf2+ 18. Kd1 Qf3+ 19. Qxf3 Rxf3 $16) 17... Re8 18. Bd3 Rxe7
19. Qh7+ Kf8 20. Bxh6 Qb4+ 21. Bd2 Qxb2 22. Rb1 $18) 17. Qc2 {[%emt 0:01:46]} (
17. cxd5 $18 cxd5 18. e7 $1 dxe4 19. exd8=N (19. exd8=R Rxd8 20. Bg2 Nc6 $16)
19... Rxd8 20. Bg2) 17... Na6 $14 {[%emt 0:03:13] [#]} 18. a3 {[%emt 0:00:25]}
({White should play} 18. g5 $1 $16) 18... Rc8 {[%emt 0:04:20]} (18... e4 $11)
19. g5 {[%emt 0:02:17]} hxg5 {[%emt 0:02:41]} (19... h5 $14) 20. Rg1 $16 {
[%emt 0:01:02]} Qf6 {[%emt 0:06:14]} 21. Bxg5 {[%emt 0:03:41]} ({Reject} 21.
Rxg5 $6 e4 $11) 21... Qxe6 {[%emt 0:00:15]} 22. Be2 $40 {[%emt 0:00:08][%cal
Yf1e2,Ye2g4,Yg4e6,Ye6d5] Black must now prevent Bg4. Black is in trouble. A
strong pair of Bishops.} Qf5 {[%emt 0:09:01] This costs Black the game.} (22...
Rc7 $16) 23. Qxf5 $18 {[%emt 0:00:29]} Rxf5 {[%emt 0:00:02]} 24. Bg4 {[%emt 0:
00:40]} Rxg5 {[%emt 0:04:24]} 25. Be6+ {[%emt 0:00:10] Discovered Attack,
Double Attack} Kh7 $2 {[%emt 0:01:05]} (25... Kf8 26. Rxg5 Rd8 27. cxd5 cxd5)
26. Rxg5 {[%emt 0:00:38]} Rc7 {[%emt 0:06:01]} 27. cxd5 {[%emt 0:07:37]} cxd5 {
[%emt 0:00:20]} 28. Bxd5 {[%emt 0:00:07]} Nc5 {[%emt 0:00:00]} 29. Ke2 {
[%emt 0:00:59] Against Nd3} Nd7 {[%emt 0:06:36]} 30. Rag1 {[%emt 0:05:47]
Intending Rh5+ and mate.} Nf6 {[%emt 0:01:00] [#] Inhibits Rh5+.} 31. Rxg7+ $1
{[%emt 0:00:39]} Rxg7 {[%emt 0:00:20]} 32. Rxg7+ {[%emt 0:00:06]} Kxg7 {
[%emt 0:00:04]} 33. Bxb7 {[%emt 0:00:06] Endgame KB-KN} Kg6 {[%emt 0:00:26]}
34. b4 {[%emt 0:01:12][%cal Yb2b4,Yb4b5]} Kf5 {[%emt 0:00:53]} 35. Ke3 {
[%emt 0:01:28]} e4 {[%emt 0:01:13]} 36. b5 {[%emt 0:00:00] And now a4 would
win.} Ke5 {[%emt 0:00:35]} 37. a4 {[%emt 0:00:13]} Nd7 {[%emt 0:07:52]} 38.
Bxe4 {[%emt 0:03:07]} Nb6 {[%emt 0:00:16]} 39. f4+ {[%emt 0:00:24]} Kf6 {
[%emt 0:00:34]} 40. Bc2 {[%emt 0:00:13]} Nd5+ {[%emt 0:00:00]} 41. Ke4 {
[%emt 0:30:15]} Nc3+ {[%emt 0:30:39]} 42. Kf3 {[%emt 0:00:32] White mates.} Nd5
{[%emt 0:00:38]} 43. a5 {[%emt 0:00:43][%cal Ya4a5,Ya5b6,Yb6b7]} Ke7 {[%emt 0:
02:04]} 44. Be4 {[%emt 0:00:19]} Nb4 {[%emt 0:00:00]} 45. b6 {[%emt 0:00:13]}
axb6 {[%emt 0:01:21]} 46. axb6 {[%emt 0:00:02]} Kd6 {[%emt 0:01:41]} 47. h4 {
[%emt 0:00:19][%cal Yh3h4,Yh4h5]} Kc5 {[%emt 0:00:17]} 48. b7 {[%emt 0:00:07]}
Na6 {[%emt 0:00:03]} 49. h5 {[%emt 0:00:00] Weighted Error Value: White=0.22 
(precise) /Black=0.45} 1-0

[Event "44th Chess Olympiad Women 2022"]
[Site "Chennai"]
[Date "2022.07.29"]
[Round "1.16"]
[White "Lam, Ka Yan"]
[Black "Pratyusha, Bodda"]
[Result "0-1"]
[WhiteElo "1223"]
[BlackElo "2310"]
[Annotator "ChessBase"]
[PlyCount "64"]
[EventDate "2022.??.??"]
[TimeControl "60"]

1. e4 {[%emt 0:00:12]} c6 {[%emt 0:00:56]} 2. d4 {[%emt 0:03:01]} d5 {[%emt 0:
00:00]} 3. exd5 {[%emt 0:02:55]} cxd5 {[%emt 0:00:05]} 4. Nc3 {[%emt 0:01:12]}
Nc6 {[%emt 0:01:26]} 5. Nf3 {[%emt 0:01:25]} Nf6 {[%emt 0:00:19]} 6. Bb5 {
[%emt 0:04:26]} Bg4 {[%emt 0:00:56]} 7. Qd3 {[%emt 0:08:04]} Bxf3 {[%emt 0:00:
00]} 8. Qxf3 {[%emt 0:01:21]} e6 {[%emt 0:00:36]} 9. O-O {[%emt 0:03:39]} a6 {
[%emt 0:07:33]} 10. Bxc6+ {[%emt 0:06:44]} bxc6 {[%emt 0:00:07]} 11. Bg5 {
[%emt 0:01:05]} Be7 {[%emt 0:00:24]} 12. Bxf6 {[%emt 0:06:08]} Bxf6 {[%emt 0:
00:00]} 13. Ne2 {[%emt 0:00:35]} Qb6 {[%emt 0:03:54]} 14. Qb3 {[%emt 0:05:41]}
Bxd4 {[%emt 0:05:16]} 15. Nxd4 {[%emt 0:00:50]} Qxd4 {[%emt 0:00:05]} 16. Qb7 {
[%emt 0:00:41]} O-O {[%emt 0:00:21]} 17. Rfd1 {[%emt 0:25:54]} Qc5 {[%emt 0:00:
00]} 18. b3 {[%emt 0:03:43]} Ra7 {[%emt 0:02:09]} 19. b4 {[%emt 0:01:58]} Rxb7
{[%emt 0:00:13]} 20. bxc5 {[%emt 0:00:07]} Rb5 {[%emt 0:00:10]} 21. Rab1 {
[%emt 0:01:41]} Rxc5 {[%emt 0:08:02]} 22. Rb2 {[%emt 0:01:36]} Rb5 {[%emt 0:00:
00]} 23. Rb3 {[%emt 0:00:36]} Rfb8 {[%emt 0:00:34]} 24. f3 {[%emt 0:02:50]} Kf8
{[%emt 0:00:07]} 25. Kf2 {[%emt 0:00:55]} c5 {[%emt 0:00:22]} 26. Rc3 {[%emt 0:
00:00]} c4 {[%emt 0:00:17]} 27. Rd4 {[%emt 0:00:36]} Rb2 {[%emt 0:00:31]} 28.
a3 {[%emt 0:02:16]} R8b3 {[%emt 0:00:25]} 29. Rxb3 {[%emt 0:03:33]} cxb3 {
[%emt 0:00:06]} 30. Ke1 {[%emt 0:04:52]} Rxc2 {[%emt 0:00:31]} 31. Rd2 {
[%emt 0:01:34]} Ra2 {[%emt 0:00:18]} 32. Kd1 {[%emt 0:00:51]} b2 {[%emt 0:00:
00]} 0-1

[Event "44th Chess Olympiad Women 2022"]
[Site "Chennai"]
[Date "2022.07.29"]
[Round "1.16"]
[White "Sahithi Varshini M"]
[Black "Li, Joy Ching"]
[Result "1-0"]
[WhiteElo "2312"]
[BlackElo "1386"]
[Annotator "ChessBase"]
[PlyCount "73"]
[EventDate "2022.??.??"]
[TimeControl "60"]

1. e4 {[%emt 0:00:27]} c5 {[%emt 0:00:08]} 2. Nc3 {[%emt 0:01:08]} g6 {[%emt 0:
00:00]} 3. f4 {[%emt 0:02:09]} Bg7 {[%emt 0:01:12]} 4. Nf3 {[%emt 0:00:09]} d6
{[%emt 0:04:34]} 5. Bc4 {[%emt 0:00:09]} Nf6 {[%emt 0:06:14]} 6. O-O {[%emt 0:
00:00]} O-O {[%emt 0:11:21]} 7. d3 {[%emt 0:06:51]} a6 {[%emt 0:08:38]} 8. a4 {
[%emt 0:06:32]} e6 {[%emt 0:11:06]} 9. e5 {[%emt 0:13:59]} dxe5 {[%emt 0:05:42]
} 10. Nxe5 {[%emt 0:11:44]} Nd5 {[%emt 0:04:37]} 11. Ne4 {[%emt 0:07:55]} Qc7 {
[%emt 0:05:41]} 12. Qe1 {[%emt 0:03:08]} Nd7 {[%emt 0:05:58]} 13. Nxd7 {
[%emt 0:00:27]} Bxd7 {[%emt 0:01:10]} 14. a5 {[%emt 0:13:14]} Bb5 {[%emt 0:00:
00]} 15. c3 {[%emt 0:01:29]} Bxc4 {[%emt 0:04:25]} 16. dxc4 {[%emt 0:00:06]}
Nf6 {[%emt 0:01:03]} 17. Ng5 {[%emt 0:05:10]} h6 {[%emt 0:03:21]} 18. Nf3 {
[%emt 0:00:08]} Nd7 {[%emt 0:03:23]} 19. Qh4 {[%emt 0:00:54]} Kh7 {[%emt 0:00:
00]} 20. Be3 {[%emt 0:02:19]} e5 {[%emt 0:01:43]} 21. fxe5 {[%emt 0:04:19]}
Nxe5 {[%emt 0:00:43]} 22. Ng5+ {[%emt 0:01:36]} Kg8 {[%emt 0:00:48]} 23. Ne4 {
[%emt 0:00:10]} g5 {[%emt 0:07:02]} 24. Bxg5 {[%emt 0:02:58]} hxg5 {[%emt 0:00:
00]} 25. Nxg5 {[%emt 0:00:11]} Rfe8 {[%emt 0:00:37]} 26. Qh7+ {[%emt 0:00:05]}
Kf8 {[%emt 0:00:07]} 27. Rae1 {[%emt 0:00:06]} Re7 {[%emt 0:01:37]} 28. h4 {
[%emt 0:01:25]} Ng4 {[%emt 0:01:33]} 29. Rxf7+ {[%emt 0:00:21]} Rxf7 {[%emt 0:
00:00]} 30. Ne6+ {[%emt 0:00:05]} Ke7 {[%emt 0:00:19]} 31. Nxc7+ {[%emt 0:00:
00]} Kd7 {[%emt 0:00:19]} 32. Qg6 {[%emt 0:00:51]} Raf8 {[%emt 0:01:14]} 33.
Ne6 {[%emt 0:00:24]} Re7 {[%emt 0:00:50]} 34. Nxc5+ {[%emt 0:01:20]} Kd8 {
[%emt 0:00:36]} 35. Qd6+ {[%emt 0:00:09]} Kc8 {[%emt 0:00:11]} 36. Rxe7 {
[%emt 0:00:25]} Rd8 {[%emt 0:00:09]} 37. Qc7# {[%emt 0:00:07]} 1-0